fUST/lending_fUST_20250108
["ID","MTS","AMOUNT","RATE_DAILY","PERIOD"]
[348012248,1736267439601,-6357.51,0.00019452,3]
[348012250,1736267439610,-500.0,0.00019452,3]
[348012251,1736267439620,-2334.77,0.00019452,3]
[348012253,1736267439629,-500.0,0.00019452,3]
[348012255,1736267439638,-500.0,0.00019452,3]
[348012257,1736267439648,-500.0,0.00019452,3]
[348012259,1736267439657,-500.0,0.00019452,3]
[348012261,1736267439667,-2105.36,0.00019452,3]
[348012263,1736267439676,-2031.85,0.00019452,3]
[348012265,1736267439685,-1420.58,0.00019452,3]
[348012267,1736267439695,-500.0,0.00019452,3]
[348012269,1736267439704,-500.0,0.00019452,3]
[348012271,1736267439714,-4740.49,0.00019452,3]
[348012273,1736267439726,-500.0,0.00019452,3]
[348012275,1736267439735,-500.0,0.00019452,2]
[348012277,1736267439744,-500.0,0.00019452,3]
[348012279,1736267439754,-500.0,0.00019452,3]
[348012282,1736267439763,-500.0,0.00019452,2]
[348012284,1736267439773,-866.49,0.00019452,3]
[348012286,1736267439782,-1717.81,0.00019452,3]
[348012287,1736267439791,-150.0,0.00019537,2]
[348012289,1736267439801,-535.0,0.00019537,2]
[348012291,1736267439810,-2081.0,0.00019537,2]
[348012294,1736267439821,-2317.0,0.00019537,2]
[348012296,1736267439831,-394.0,0.00019537,2]
[348012297,1736267439840,-3167.30252265,0.00019639,2]
[348012299,1736267439850,-12714.31918722,0.00019686,2]
[348012302,1736267439860,-500.0,0.00019725,3]
[348012304,1736267439869,-500.0,0.00019725,3]
[348012305,1736267439879,-500.0,0.00019725,3]
[348012308,1736267439889,-500.0,0.00019725,3]
[348012309,1736267439900,-500.0,0.00019725,3]
[348012312,1736267439910,-467.83320518,0.00019725,3]
[348012314,1736267439919,-500.0,0.00019725,3]
[348012316,1736267439928,-500.0,0.00019725,3]
[348012317,1736267439937,-500.0,0.00019725,3]
[348012320,1736267439946,-524.87817578,0.00019725,3]
[348012321,1736267439956,-500.0,0.00019725,3]
[348012323,1736267439965,-500.0,0.00019725,3]
[348012325,1736267439976,-500.0,0.00019725,3]
[348012327,1736267439985,-500.0,0.00019725,3]
[348012330,1736267439995,-231.7749447,0.00019725,3]
[348012332,1736267440004,-500.0,0.00019725,3]
[348012334,1736267440014,-500.0,0.00019725,3]
[348012336,1736267440023,-500.0,0.00019725,3]
[348012338,1736267440032,-500.0,0.00019725,3]
[348012340,1736267440042,-430.15662646,0.00019725,3]
[348012342,1736267440051,-500.0,0.00019725,3]
[348012344,1736267440060,-500.0,0.00019725,3]
[348012346,1736267440071,-500.0,0.00019725,3]
[348012347,1736267440080,-500.0,0.00019725,3]
[348012349,1736267440090,-570.06,0.00019725,3]
[348012352,1736267440100,-500.0,0.00019725,3]
[348012354,1736267440112,-500.0,0.00019725,3]
[348012356,1736267440121,-500.0,0.00019725,3]
[348012358,1736267440131,-500.0,0.00019725,3]
[348012360,1736267440141,-500.0,0.00019725,3]
[348012362,1736267440150,-500.0,0.00019725,3]
[348012364,1736267440160,-446.97815243,0.00019725,3]
[348012365,1736267440169,-500.0,0.00019725,3]
[348012367,1736267440180,-377.72884785,0.00019725,3]
[348012369,1736267440189,-500.0,0.00019725,3]
[348012372,1736267440199,-500.0,0.00019725,3]
[348012375,1736267440209,-500.0,0.00019725,3]
[348012376,1736267440219,-500.0,0.00019725,3]
[348012379,1736267440230,-445.1087233,0.00019725,5]
[348012383,1736267440239,-500.0,0.00019725,3]
[348012384,1736267440248,-500.0,0.00019725,3]
[348012386,1736267440258,-500.0,0.00019725,3]
[348012389,1736267440267,-500.0,0.00019725,3]
[348012391,1736267440277,-500.0,0.00019725,3]
[348012393,1736267440287,-500.0,0.00019725,3]
[348012395,1736267440296,-500.0,0.00019725,3]
[348012397,1736267440306,-505.13610034,0.00019725,3]
[348012398,1736267440316,-500.0,0.00019725,3]
[348012400,1736267440325,-500.0,0.00019725,3]
[348012402,1736267440335,-500.0,0.00019725,3]
[348012404,1736267440344,-500.0,0.00019725,3]
[348012406,1736267440353,-500.0,0.00019725,3]
[348012408,1736267440363,-500.0,0.00019725,3]
[348012410,1736267440373,-500.0,0.00019725,3]
[348012412,1736267440382,-4365.47,0.00019726,3]
[348012415,1736267440392,-500.0,0.00019726,3]
[348012417,1736267440401,-500.0,0.00019726,3]
[348012419,1736267440411,-500.0,0.00019726,3]
[348012421,1736267440420,-500.0,0.00019726,3]
[348012423,1736267440429,-500.0,0.00019726,3]
[348012424,1736267440439,-500.0,0.00019726,3]
[348012426,1736267440448,-500.0,0.00019726,3]
[348012428,1736267440457,-500.0,0.00019726,3]
[348012431,1736267440467,-500.0,0.00019726,3]
[348012433,1736267440478,-500.0,0.00019726,3]
[348012435,1736267440489,-500.0,0.00019726,3]
[348012437,1736267440498,-500.0,0.00019726,3]
[348012439,1736267440507,-500.0,0.00019726,3]
[348012441,1736267440517,-500.0,0.00019726,3]
[348012443,1736267440528,-500.0,0.00019726,3]
[348012445,1736267440537,-500.0,0.00019726,3]
[348012447,1736267440546,-500.0,0.00019726,3]
[348012449,1736267440555,-516.08,0.00019726,3]
[348012451,1736267440564,-500.0,0.00019726,3]
[348012452,1736267440574,-500.0,0.00019726,3]
[348012454,1736267440583,-500.0,0.00019726,3]
[348012456,1736267440593,-500.0,0.00019726,3]
[348012459,1736267440603,-195.34756729,0.00019726,3]
[348012461,1736267440613,-684.93,0.00019726,3]
[348012463,1736267440622,-1005.26,0.00019726,3]
[348012465,1736267440632,-500.0,0.00019726,3]
[348012467,1736267440642,-500.0,0.00019726,3]
[348012469,1736267440651,-937.78,0.00019726,3]
[348012471,1736267440660,-500.0,0.00019726,3]
[348012473,1736267440670,-500.0,0.00019726,3]
[348012475,1736267440679,-500.0,0.00019726,3]
[348012477,1736267440689,-500.0,0.00019726,3]
[348012479,1736267440698,-445.45335953,0.00019726,3]
[348012481,1736267440708,-957.72,0.00019726,3]
[348012483,1736267440717,-510.15460416,0.00019726,3]
[348012485,1736267440726,-636.18,0.00019726,3]
[348012487,1736267440736,-659.36,0.00019726,3]
[348012489,1736267440745,-581.1,0.00019726,3]
[348012491,1736267440754,-1041.67,0.00019726,3]
[348012493,1736267440763,-998.26,0.00019726,3]
[348012495,1736267440773,-480.51984768,0.00019726,3]
[348012497,1736267440782,-500.0,0.00019726,3]
[348012499,1736267440792,-500.0,0.00019726,3]
[348012501,1736267440802,-500.0,0.00019726,3]
[348012503,1736267440811,-500.0,0.00019726,3]
[348012505,1736267440820,-595.17993799,0.00019726,3]
[348012507,1736267440830,-500.0,0.00019726,3]
[348012509,1736267440839,-372.60348383,0.00019726,3]
[348012511,1736267440848,-634.24,0.00019726,3]
[348012513,1736267440858,-500.0,0.00019726,3]
[348012515,1736267440866,-500.0,0.00019726,3]
[348012517,1736267440875,-500.0,0.00019726,3]
[348012519,1736267440885,-608.02,0.00019726,3]
[348012521,1736267440894,-500.0,0.00019726,3]
[348012523,1736267440903,-500.0,0.00019726,3]
[348012525,1736267440912,-500.0,0.00019726,3]
[348012527,1736267440921,-500.0,0.00019726,3]
[348012529,1736267440930,-1203.04,0.00019726,3]
[348012531,1736267440940,-500.0,0.00019726,3]
[348012533,1736267440949,-500.0,0.00019726,3]
[348012535,1736267440958,-695.47,0.00019726,3]
[348012537,1736267440967,-839.31,0.00019726,3]
[348012539,1736267440977,-500.0,0.00019726,3]
[348012541,1736267440986,-500.0,0.00019726,3]
[348012543,1736267440995,-519.92,0.00019726,3]
[348012545,1736267441004,-880.95,0.00019726,3]
[348012547,1736267441013,-616.6,0.00019726,3]
[348012549,1736267441022,-500.0,0.00019726,3]
[348012551,1736267441031,-664.3,0.00019726,3]
[348012553,1736267441040,-730.17,0.00019726,3]
[348012555,1736267441050,-1040.33,0.00019726,3]
[348012557,1736267441059,-649.74,0.00019726,3]
[348012559,1736267441069,-500.0,0.00019726,3]
[348012561,1736267441079,-504.85,0.00019726,3]
[348012563,1736267441089,-500.0,0.00019726,3]
[348012565,1736267441098,-500.0,0.00019726,3]
[348012567,1736267441108,-500.0,0.00019726,3]
[348012569,1736267441119,-563.62,0.00019726,3]
[348012571,1736267441128,-500.0,0.00019726,3]
[348012573,1736267441136,-500.0,0.00019726,3]
[348012575,1736267441145,-513.37,0.00019726,3]
[348012577,1736267441154,-500.0,0.00019726,3]
[348012579,1736267441163,-755.84,0.00019726,3]
[348012580,1736267441172,-1174.33,0.00019726,3]
[348012582,1736267441181,-445.94802594,0.00019726,3]
[348012584,1736267441191,-639.05,0.00019726,3]
[348012586,1736267441200,-500.0,0.00019726,3]
[348012588,1736267441209,-457.96197446,0.00019726,3]
[348012590,1736267441219,-2112.64,0.00019726,3]
[348012592,1736267441231,-500.0,0.00019726,3]
[348012594,1736267441240,-500.0,0.00019726,3]
[348012596,1736267441249,-500.0,0.00019726,3]
[348012598,1736267441258,-500.0,0.00019726,3]
[348012600,1736267441267,-500.0,0.00019726,3]
[348012602,1736267441278,-500.0,0.00019726,3]
[348012604,1736267441288,-500.0,0.00019726,3]
[348012606,1736267441298,-543.16,0.00019726,3]
[348012608,1736267441309,-500.0,0.00019726,3]
[348012610,1736267441319,-786.03,0.00019726,3]
[348012612,1736267441328,-1035.57,0.00019726,3]
[348012614,1736267441337,-500.0,0.00019726,3]
[348012617,1736267441347,-514.33416895,0.00019726,3]
[348012619,1736267441356,-880.07,0.00019726,3]
[348012621,1736267441366,-3386.0,0.00019726,3]
[348012622,1736267441375,-1376.48,0.00019726,3]
[348012625,1736267441385,-500.0,0.00019726,3]
[348012626,1736267441394,-500.0,0.00019726,3]
[348012629,1736267441404,-500.0,0.00019726,3]
[348012631,1736267441414,-500.0,0.00019726,3]
[348012633,1736267441423,-1294.78,0.00019726,3]
[348012635,1736267441433,-573.87,0.00019726,3]
[348012637,1736267441442,-26296.05,0.00019726,3]
[348012639,1736267441451,-1172.03,0.00019726,3]
[348012641,1736267441460,-500.0,0.00019726,3]
[348012643,1736267441470,-500.0,0.00019726,3]
[348012645,1736267441481,-500.0,0.00019726,3]
[348012647,1736267441490,-500.0,0.00019726,3]
[348012649,1736267441500,-790.53,0.00019726,3]
[348012651,1736267441509,-500.0,0.00019726,3]
[348012653,1736267441519,-1264.56,0.00019726,3]
[348012655,1736267441528,-2751.08,0.00019726,3]
[348012657,1736267441537,-6357.51,0.00019726,3]
[348012659,1736267441547,-500.0,0.00019726,3]
[348012661,1736267441556,-2334.77,0.00019726,3]
[348012663,1736267441565,-500.0,0.00019726,3]
[348012665,1736267441575,-500.0,0.00019726,3]
[348012667,1736267441584,-500.0,0.00019726,3]
[348012669,1736267441593,-500.0,0.00019726,3]
[348012671,1736267441602,-2105.36,0.00019726,3]
[348012673,1736267441611,-2031.85,0.00019726,3]
[348012675,1736267441620,-1420.58,0.00019726,3]
[348012677,1736267441629,-500.0,0.00019726,3]
[348012679,1736267441638,-500.0,0.00019726,3]
[348012681,1736267441648,-500.0,0.00019726,3]
[348012683,1736267441657,-4740.49,0.00019726,3]
[348012685,1736267441666,-500.0,0.00019726,2]
[348012687,1736267441676,-500.0,0.00019726,3]
[348012689,1736267441685,-500.0,0.00019726,3]
[348012691,1736267441695,-597.79536954,0.00019726,2]
[348012693,1736267441705,-866.49,0.00019726,3]
[348012695,1736267441715,-1717.81,0.00019726,3]
[348012697,1736267441725,-1200.0,0.00019731,2]
[348012699,1736267441734,-660.197,0.00019731,2]
[348012701,1736267441744,-266.37762227,0.00019773,2]
[348012703,1736267441753,-12714.31918723,0.00019783,2]
[348012705,1736267441763,-10748.58887634,0.0001999,3]
[348012707,1736267441773,-500.0,0.00019999,3]
[348012709,1736267441783,-500.0,0.00019999,3]
[348012711,1736267441793,-318.83250209,0.00019999,3]
[348012713,1736267441803,-480.24119547,0.00019999,3]
[348012715,1736267441812,-500.0,0.00019999,3]
[348012717,1736267441822,-500.0,0.00019999,3]
[348012719,1736267441831,-500.0,0.00019999,3]
[348012721,1736267441840,-500.0,0.00019999,3]
[348012723,1736267441849,-500.0,0.00019999,3]
[348012725,1736267441859,-500.0,0.00019999,3]
[348012727,1736267441868,-500.0,0.00019999,3]
[348012729,1736267441878,-512.54794364,0.00019999,3]
[348012731,1736267441887,-500.0,0.00019999,3]
[348012733,1736267441897,-500.0,0.00019999,3]
[348012735,1736267441906,-500.0,0.00019999,3]
[348012737,1736267441915,-500.0,0.00019999,3]
[348012739,1736267441924,-500.0,0.00019999,3]
[348012741,1736267441933,-500.0,0.00019999,3]
[348012743,1736267441942,-254.59964573,0.00019999,3]
[348012745,1736267441951,-500.0,0.00019999,3]
[348012747,1736267441961,-500.0,0.00019999,3]
[348012749,1736267441970,-500.0,0.00019999,3]
[348012751,1736267441980,-500.0,0.00019999,3]
[348012753,1736267441989,-514.54694315,0.00019999,3]
[348012755,1736267441999,-500.0,0.00019999,3]
[348012757,1736267442008,-500.0,0.00019999,3]
[348012759,1736267442018,-612.60154357,0.00019999,3]
[348012761,1736267442027,-500.0,0.00019999,3]
[348012763,1736267442036,-500.0,0.00019999,3]
[348012765,1736267442046,-500.0,0.00019999,3]
[348012767,1736267442055,-500.0,0.00019999,3]
[348012769,1736267442064,-500.0,0.00019999,3]
[348012771,1736267442074,-500.0,0.00019999,3]
[348012773,1736267442083,-500.0,0.00019999,3]
[348012775,1736267442093,-500.0,0.00019999,3]
[348012777,1736267442103,-500.0,0.00019999,3]
[348012779,1736267442117,-500.0,0.00019999,3]
[348012781,1736267442126,-500.0,0.00019999,3]
[348012784,1736267442136,-500.0,0.00019999,3]
[348012785,1736267442145,-500.0,0.00019999,3]
[348012788,1736267442158,-500.0,0.00019999,3]
[348012789,1736267442167,-500.0,0.00019999,3]
[348012792,1736267442179,-500.0,0.00019999,3]
[348012794,1736267442189,-500.0,0.00019999,3]
[348012796,1736267442199,-500.0,0.00019999,3]
[348012798,1736267442209,-41988.67131756,0.0002,2]
[348012800,1736267442219,-3798.90492521,0.0002,2]
[348012814,1736267442234,-88288.00863,0.0002,2]
[348012816,1736267442366,-3445.02,0.0002,2]
[348012818,1736267442376,-17271.0,0.0002,2]
[348012820,1736267442385,-500.0,0.0002,3]
[348012822,1736267442394,-4365.47,0.0002,3]
[348012824,1736267442403,-500.0,0.0002,3]
[348012826,1736267442414,-500.0,0.0002,3]
[348012828,1736267442423,-160.0,0.0002,2]
[348012830,1736267442432,-500.0,0.0002,3]
[348012832,1736267442441,-500.0,0.0002,3]
[348012834,1736267442450,-500.0,0.0002,3]
[348012836,1736267442459,-500.0,0.0002,3]
[348012838,1736267442468,-500.0,0.0002,3]
[348012840,1736267442480,-503.63358157,0.0002,3]
[348012842,1736267442495,-500.0,0.0002,3]
[348012844,1736267442505,-339.06480048,0.0002,3]
[348012846,1736267442514,-500.0,0.0002,3]
[348012848,1736267442523,-500.0,0.0002,3]
[348012850,1736267442533,-500.0,0.0002,3]
[348012852,1736267442542,-500.0,0.0002,3]
[348012854,1736267442551,-500.0,0.0002,3]
[348012856,1736267442560,-500.0,0.0002,3]
[348012858,1736267442570,-500.0,0.0002,3]
[348012860,1736267442579,-500.0,0.0002,3]
[348012862,1736267442588,-500.0,0.0002,3]
[348012864,1736267442597,-500.0,0.0002,3]
[348012866,1736267442607,-500.0,0.0002,3]
[348012868,1736267442616,-684.93,0.0002,3]
[348012869,1736267442625,-1005.26,0.0002,3]
[348012871,1736267442635,-500.0,0.0002,3]
[348012874,1736267442644,-500.0,0.0002,3]
[348012876,1736267442654,-937.78,0.0002,3]
[348012877,1736267442663,-500.0,0.0002,3]
[348012880,1736267442673,-500.0,0.0002,3]
[348012881,1736267442682,-500.0,0.0002,3]
[348012884,1736267442691,-500.0,0.0002,3]
[348012885,1736267442701,-957.72,0.0002,3]
[348012887,1736267442710,-636.18,0.0002,3]
[348012890,1736267442721,-659.36,0.0002,3]
[348012892,1736267442730,-581.1,0.0002,3]
[348012893,1736267442740,-1041.67,0.0002,3]
[348012895,1736267442749,-998.26,0.0002,3]
[348012898,1736267442759,-1000.0,0.0002,20]
[348012900,1736267442768,-500.0,0.0002,3]
[348012902,1736267442777,-500.0,0.0002,3]
[348012903,1736267442786,-500.0,0.0002,3]
[348012905,1736267442796,-500.0,0.0002,3]
[348012908,1736267442805,-500.0,0.0002,3]
[348012909,1736267442815,-634.24,0.0002,3]
[348012911,1736267442824,-500.0,0.0002,3]
[348012913,1736267442833,-500.0,0.0002,3]
[348012915,1736267442842,-500.0,0.0002,3]
[348012917,1736267442851,-608.02,0.0002,3]
[348012919,1736267442860,-500.0,0.0002,3]
[348012921,1736267442869,-1000.0,0.0002,2]
[348012923,1736267442878,-500.0,0.0002,3]
[348012925,1736267442887,-500.0,0.0002,3]
[348012927,1736267442897,-500.0,0.0002,3]
[348012929,1736267442906,-1203.04,0.0002,3]
[348012931,1736267442915,-500.0,0.0002,3]
[348012933,1736267442924,-500.0,0.0002,3]
[348012935,1736267442933,-695.47,0.0002,3]
[348012937,1736267442942,-839.31,0.0002,3]
[348012939,1736267442951,-500.0,0.0002,3]
[348012941,1736267442960,-500.0,0.0002,3]
[348012943,1736267442969,-519.92,0.0002,3]
[348012945,1736267442983,-880.95,0.0002,3]
[348012947,1736267442993,-616.6,0.0002,3]
[348012949,1736267443002,-500.0,0.0002,3]
[348012951,1736267443015,-664.3,0.0002,3]
[348012953,1736267443024,-730.17,0.0002,3]
[348012956,1736267443033,-1040.33,0.0002,3]
[348012957,1736267443044,-649.74,0.0002,3]
[348012959,1736267443053,-500.0,0.0002,3]
[348012962,1736267443063,-504.85,0.0002,3]
[348012965,1736267443073,-500.0,0.0002,3]
[348012968,1736267443082,-500.0,0.0002,3]
[348012970,1736267443092,-500.0,0.0002,3]
[348012973,1736267443102,-563.62,0.0002,3]
[348012976,1736267443116,-500.0,0.0002,3]
[348012979,1736267443134,-513.37,0.0002,3]
[348012981,1736267443146,-500.0,0.0002,3]
[348012982,1736267443155,-755.84,0.0002,3]
[348012984,1736267443166,-1174.33,0.0002,3]
[348012986,1736267443177,-639.05,0.0002,3]
[348012989,1736267443187,-500.0,0.0002,3]
[348012991,1736267443197,-2112.64,0.0002,3]
[348012993,1736267443206,-500.0,0.0002,3]
[348012994,1736267443216,-500.0,0.0002,3]
[348012997,1736267443226,-500.0,0.0002,3]
[348012999,1736267443242,-500.0,0.0002,3]
[348013003,1736267443251,-500.0,0.0002,3]
[348013006,1736267443261,-500.0,0.0002,3]
[348013009,1736267443271,-543.16,0.0002,3]
[348013012,1736267443282,-500.0,0.0002,3]
[348013015,1736267443291,-786.03,0.0002,3]
[348013017,1736267443301,-1035.57,0.0002,3]
[348013019,1736267443312,-41837.38404867,0.0002,2]
[348013021,1736267443322,-500.0,0.0002,3]
[348013023,1736267443332,-880.07,0.0002,3]
[348013025,1736267443342,-3386.0,0.0002,3]
[348013027,1736267443352,-1376.48,0.0002,3]
[348013029,1736267443362,-500.0,0.0002,3]
[348013032,1736267443372,-500.0,0.0002,3]
[348013034,1736267443382,-511.59490707,0.0002,3]
[348013035,1736267443391,-500.0,0.0002,3]
[348013038,1736267443401,-1294.78,0.0002,3]
[348013039,1736267443410,-573.87,0.0002,3]
[348013042,1736267443419,-26296.05,0.0002,3]
[348013043,1736267443429,-1172.03,0.0002,3]
[348013045,1736267443438,-500.0,0.0002,3]
[348013048,1736267443447,-500.0,0.0002,3]
[348013049,1736267443456,-500.0,0.0002,3]
[348013051,1736267443465,-500.0,0.0002,3]
[348013052,1736267443475,-790.53,0.0002,3]
[348013053,1736267443486,-500.0,0.0002,3]
[348013054,1736267443496,-1264.56,0.0002,3]
[348013055,1736267443505,-2751.08,0.0002,3]
[348013056,1736267443514,-6357.51,0.0002,3]
[348013057,1736267443523,-500.0,0.0002,3]
[348013058,1736267443532,-2334.77,0.0002,3]
[348013059,1736267443542,-500.0,0.0002,3]
[348013060,1736267443551,-500.0,0.0002,3]
[348013061,1736267443560,-529.3555186,0.0002,3]
[348013062,1736267443569,-517.46983912,0.0002,3]
[348013063,1736267443579,-2105.36,0.0002,3]
[348013064,1736267443588,-2031.85,0.0002,3]
[348013065,1736267443598,-1420.58,0.0002,3]
[348013066,1736267443607,-500.0,0.0002,3]
[348013067,1736267443617,-500.0,0.0002,3]
[348013068,1736267443626,-500.0,0.0002,3]
[348013069,1736267443635,-500.0,0.0002,2]
[348013070,1736267443644,-500.0,0.0002,3]
[348013071,1736267443654,-500.0,0.0002,3]
[348013072,1736267443663,-4740.49,0.0002,3]
[348013074,1736267443673,-866.49,0.0002,3]
[348013076,1736267443683,-1717.81,0.0002,3]
[348013078,1736267443692,-2000.0,0.000201,2]
[348013080,1736267443701,-2000.0,0.000201,2]
[348013082,1736267443711,-3167.30252265,0.000202,2]
[348013084,1736267443720,-352.9591083,0.00020219,2]
[348013086,1736267443733,-352.9591083,0.00020219,2]
[348013088,1736267443742,-352.9591083,0.00020219,2]
[348013090,1736267443751,-352.9591083,0.00020219,2]
[348013092,1736267443761,-351.8135208,0.00020219,2]
[348013094,1736267443770,-500.0,0.00020273,3]
[348013096,1736267443778,-4365.47,0.00020273,3]
[348013098,1736267443787,-500.0,0.00020273,3]
[348013101,1736267443796,-500.0,0.00020273,3]
[348013104,1736267443805,-500.0,0.00020273,3]
[348013107,1736267443814,-500.0,0.00020273,3]
[348013109,1736267443823,-518.25615128,0.00020273,3]
[348013111,1736267443832,-500.0,0.00020273,3]
[348013113,1736267443841,-500.0,0.00020273,3]
[348013115,1736267443850,-500.0,0.00020273,3]
[348013117,1736267443859,-500.0,0.00020273,3]
[348013119,1736267443868,-500.0,0.00020273,3]
[348013121,1736267443877,-500.0,0.00020273,3]
[348013124,1736267443886,-500.0,0.00020273,3]
[348013127,1736267443896,-500.0,0.00020273,3]
[348013130,1736267443905,-500.0,0.00020273,3]
[348013134,1736267443914,-500.0,0.00020273,3]
[348013136,1736267443923,-500.0,0.00020273,3]
[348013138,1736267443932,-500.0,0.00020273,3]
[348013140,1736267443941,-500.0,0.00020273,3]
[348013142,1736267443950,-500.0,0.00020273,3]
[348013144,1736267443960,-500.0,0.00020273,3]
[348013146,1736267443969,-537.50698404,0.00020273,3]
[348013148,1736267443980,-508.08204602,0.00020273,3]
[348013150,1736267443989,-500.0,0.00020273,3]
[348013152,1736267443998,-500.0,0.00020273,3]
[348013154,1736267444007,-500.0,0.00020273,3]
[348013156,1736267444016,-500.0,0.00020273,3]
[348013158,1736267444025,-500.0,0.00020273,3]
[348013160,1736267444035,-500.0,0.00020273,3]
[348013162,1736267444044,-589.12203148,0.00020273,3]
[348013164,1736267444053,-500.0,0.00020273,3]
[348013166,1736267444062,-500.0,0.00020273,3]
[348013168,1736267444071,-514.19243343,0.00020273,3]
[348013170,1736267444081,-500.0,0.00020273,3]
[348013172,1736267444090,-500.0,0.00020273,3]
[348013174,1736267444100,-500.0,0.00020273,3]
[348013176,1736267444112,-500.0,0.00020273,3]
[348013178,1736267444122,-500.0,0.00020273,3]
[348013180,1736267444131,-684.93,0.00020273,3]
[348013182,1736267444140,-1005.26,0.00020273,3]
[348013184,1736267444151,-500.0,0.00020273,3]
[348013187,1736267444160,-500.0,0.00020273,3]
[348013190,1736267444169,-937.78,0.00020273,3]
[348013192,1736267444179,-500.0,0.00020273,3]
[348013194,1736267444190,-500.0,0.00020273,3]
[348013196,1736267444199,-500.0,0.00020273,3]
[348013198,1736267444208,-500.0,0.00020273,3]
[348013200,1736267444217,-500.0,0.00020273,3]
[348013202,1736267444228,-957.72,0.00020273,3]
[348013204,1736267444237,-636.18,0.00020273,3]
[348013206,1736267444246,-659.36,0.00020273,3]
[348013208,1736267444255,-581.1,0.00020273,3]
[348013210,1736267444264,-1041.67,0.00020273,3]
[348013212,1736267444274,-998.26,0.00020273,3]
[348013213,1736267444283,-500.0,0.00020273,3]
[348013215,1736267444293,-500.0,0.00020273,3]
[348013218,1736267444303,-164.84015521,0.00020273,3]
[348013219,1736267444312,-500.0,0.00020273,3]
[348013221,1736267444322,-500.0,0.00020273,3]
[348013223,1736267444331,-515.2948383,0.00020273,3]
[348013225,1736267444340,-500.0,0.00020273,3]
[348013228,1736267444350,-634.24,0.00020273,3]
[348013230,1736267444360,-500.0,0.00020273,3]
[348013232,1736267444369,-500.0,0.00020273,3]
[348013234,1736267444378,-500.0,0.00020273,3]
[348013236,1736267444388,-500.0,0.00020273,3]
[348013238,1736267444397,-500.0,0.00020273,3]
[348013240,1736267444405,-500.0,0.00020273,3]
[348013242,1736267444415,-608.02,0.00020273,3]
[348013243,1736267444424,-500.0,0.00020273,3]
[348013246,1736267444433,-500.0,0.00020273,3]
[348013248,1736267444443,-500.0,0.00020273,3]
[348013249,1736267444452,-500.0,0.00020273,3]
[348013251,1736267444462,-1203.04,0.00020273,3]
[348013253,1736267444470,-250.07947304,0.00020273,3]
[348013256,1736267444481,-500.0,0.00020273,3]
[348013258,1736267444491,-500.0,0.00020273,3]
[348013260,1736267444501,-695.47,0.00020273,3]
[348013262,1736267444509,-500.0,0.00020273,3]